fUST/lending_fUST_20250206
["ID","MTS","AMOUNT","RATE_DAILY","PERIOD"]
[351922217,1738846232557,-524.2736667,0.00013697,2]
[351922218,1738846232567,-414.34723486,0.00013698,2]
[351922219,1738846232576,-230.74569307,0.00013698,2]
[351922220,1738846232586,-495.63186622,0.00013698,2]
[351922221,1738846232596,-553.45754452,0.00013698,2]
[351922222,1738846232607,-500.0,0.00013698,2]
[351922223,1738846232616,-500.0,0.00013698,2]
[351922224,1738846232626,-500.0,0.00013698,2]
[351922225,1738846232636,-500.0,0.00013698,2]
[351922226,1738846232645,-500.0,0.00013698,2]
[351922227,1738846232654,-500.0,0.00013698,2]
[351922228,1738846232665,-500.0,0.00013698,2]
[351922229,1738846232674,-500.0,0.00013698,2]
[351922230,1738846232684,-500.0,0.00013698,2]
[351922231,1738846232693,-500.0,0.00013698,2]
[351922232,1738846232703,-500.58543279,0.00013698,2]
[351922233,1738846232712,-500.0,0.00013698,2]
[351922234,1738846232722,-500.0,0.00013698,2]
[351922235,1738846232731,-609.57,0.00013698,2]
[351922236,1738846232741,-500.0,0.00013698,2]
[351922237,1738846232751,-500.0,0.00013698,2]
[351922238,1738846232761,-500.0,0.00013698,2]
[351922239,1738846232771,-500.0,0.00013698,2]
[351922240,1738846232780,-500.0,0.00013698,2]
[351922241,1738846232790,-500.0,0.00013698,2]
[351922242,1738846232799,-500.0,0.00013698,2]
[351922243,1738846232808,-500.0,0.00013698,2]
[351922244,1738846232817,-500.0,0.00013698,2]
[351922245,1738846232828,-500.0,0.00013698,2]
[351922246,1738846232837,-500.0,0.00013698,2]
[351922247,1738846232847,-575.35366207,0.00013698,2]
[351922248,1738846232857,-500.0,0.00013698,2]
[351922249,1738846232866,-500.0,0.00013698,2]
[351922250,1738846232875,-500.0,0.00013698,2]
[351922251,1738846232885,-154.80850262,0.00013698,2]
[351922252,1738846232895,-500.0,0.00013698,2]
[351922253,1738846232904,-500.0,0.00013698,2]
[351922254,1738846232915,-500.0,0.00013698,2]
[351922255,1738846232924,-500.0,0.00013698,2]
[351922256,1738846232933,-500.0,0.00013698,2]
[351922257,1738846232943,-500.0,0.00013698,2]
[351922258,1738846232952,-500.0,0.00013698,2]
[351922259,1738846232962,-500.0,0.00013698,2]
[351922260,1738846232971,-500.0,0.00013698,2]
[351922261,1738846232980,-501.34143529,0.00013698,2]
[351922262,1738846232989,-500.0,0.00013698,2]
[351922263,1738846232998,-634.13990772,0.00013698,2]
[351922264,1738846233008,-184.55223058,0.00013698,2]
[351922265,1738846233019,-500.0,0.00013698,2]
[351922266,1738846233030,-500.0,0.00013698,2]
[351922267,1738846233039,-500.0,0.00013698,2]
[351922268,1738846233049,-500.0,0.00013698,2]
[351922269,1738846233059,-500.0,0.00013698,2]
[351922270,1738846233068,-500.0,0.00013698,2]
[351922271,1738846233078,-1438.0,0.00013698,2]
[351922272,1738846233088,-500.0,0.00013698,2]
[351922273,1738846233099,-503.29,0.00013698,2]
[351922274,1738846233109,-500.0,0.00013698,2]
[351922275,1738846233119,-500.0,0.00013698,2]
[351922276,1738846233128,-500.0,0.00013698,2]
[351922277,1738846233138,-500.0,0.00013698,2]
[351922278,1738846233148,-500.0,0.00013698,2]
[351922279,1738846233157,-887.37,0.00013698,2]
[351922280,1738846233168,-500.0,0.00013698,2]
[351922281,1738846233178,-500.0,0.00013698,2]
[351922282,1738846233187,-500.0,0.00013698,2]
[351922283,1738846233197,-500.0,0.00013698,2]
[351922284,1738846233207,-500.0,0.00013698,2]
[351922285,1738846233217,-500.0,0.00013698,2]
[351922286,1738846233227,-526.82,0.00013698,2]
[351922287,1738846233237,-500.0,0.00013698,2]
[351922288,1738846233246,-500.0,0.00013698,2]
[351922289,1738846233256,-634.75,0.00013698,2]
[351922290,1738846233266,-660.99,0.00013698,2]
[351922291,1738846233276,-500.0,0.00013698,2]
[351922292,1738846233286,-500.0,0.00013698,2]
[351922293,1738846233296,-795.39,0.00013698,2]
[351922294,1738846233306,-500.0,0.00013698,2]
[351922295,1738846233316,-500.0,0.00013698,2]
[351922296,1738846233325,-500.0,0.00013698,2]
[351922297,1738846233335,-500.0,0.00013698,2]
[351922298,1738846233344,-500.0,0.00013698,2]
[351922299,1738846233353,-500.0,0.00013698,2]
[351922300,1738846233363,-500.0,0.00013698,2]
[351922301,1738846233372,-889.35,0.00013698,2]
[351922302,1738846233382,-500.0,0.00013698,2]
[351922303,1738846233391,-500.0,0.00013698,2]
[351922304,1738846233401,-500.0,0.00013698,2]
[351922305,1738846233411,-501.76279991,0.00013698,2]
[351922306,1738846233422,-500.0,0.00013698,2]
[351922307,1738846233432,-500.0,0.00013698,2]
[351922308,1738846233444,-648.24,0.00013698,2]
[351922309,1738846233454,-752.64,0.00013698,2]
[351922310,1738846233464,-500.0,0.00013698,2]
[351922311,1738846233474,-500.0,0.00013698,2]
[351922312,1738846233483,-500.0,0.00013698,2]
[351922313,1738846233493,-500.0,0.00013698,2]
[351922314,1738846233503,-500.0,0.00013698,2]
[351922315,1738846233513,-500.0,0.00013698,2]
[351922316,1738846233523,-500.0,0.00013698,2]
[351922317,1738846233532,-500.0,0.00013698,2]
[351922318,1738846233542,-500.0,0.00013698,2]
[351922319,1738846233553,-500.0,0.00013698,2]
[351922320,1738846233564,-500.0,0.00013698,2]
[351922321,1738846233574,-500.0,0.00013698,2]
[351922322,1738846233584,-500.0,0.00013698,2]
[351922323,1738846233595,-500.0,0.00013698,2]
[351922324,1738846233607,-500.0,0.00013698,2]
[351922325,1738846233617,-500.0,0.00013698,2]
[351922326,1738846233626,-500.0,0.00013698,2]
[351922327,1738846233637,-500.0,0.00013698,2]
[351922328,1738846233648,-500.0,0.00013698,2]
[351922329,1738846233658,-500.0,0.00013698,2]
[351922330,1738846233669,-500.0,0.00013698,2]
[351922331,1738846233679,-500.0,0.00013698,2]
[351922332,1738846233688,-500.0,0.00013698,2]
[351922333,1738846233698,-500.0,0.00013698,2]
[351922334,1738846233708,-500.0,0.00013698,2]
[351922335,1738846233717,-1652.33,0.00013698,2]
[351922336,1738846233727,-1064.01,0.00013698,2]
[351922337,1738846233736,-612.57339544,0.00013698,2]
[351922338,1738846233746,-500.0,0.00013698,2]
[351922339,1738846233756,-1582.08,0.00013698,2]
[351922340,1738846233766,-500.0,0.00013698,2]
[351922341,1738846233776,-500.0,0.00013698,2]
[351922342,1738846233786,-500.0,0.00013698,2]
[351922343,1738846233796,-500.0,0.00013698,2]
[351922344,1738846233806,-601.19,0.00013698,2]
[351922345,1738846233816,-537.43,0.00013698,2]
[351922346,1738846233827,-500.0,0.00013698,2]
[351922347,1738846233837,-500.0,0.00013698,2]
[351922348,1738846233847,-500.0,0.00013698,2]
[351922349,1738846233857,-504.381993,0.00013698,2]
[351922350,1738846233867,-774.03,0.00013698,2]
[351922351,1738846233877,-500.0,0.00013698,2]
[351922352,1738846233887,-500.0,0.00013698,2]
[351922353,1738846233898,-500.0,0.00013698,2]
[351922354,1738846233908,-500.0,0.00013698,2]
[351922355,1738846233920,-500.0,0.00013698,2]
[351922356,1738846233931,-500.0,0.00013698,2]
[351922357,1738846233942,-724.34,0.00013698,2]
[351922358,1738846233951,-500.0,0.00013698,2]
[351922359,1738846233962,-503.73460434,0.00013698,2]
[351922360,1738846233972,-500.0,0.00013698,2]
[351922361,1738846233982,-188.0,0.00013698,2]
[351922362,1738846233992,-1335.36,0.00013698,2]
[351922363,1738846234003,-226.42954886,0.00013698,2]
[351922364,1738846234014,-500.0,0.00013698,2]
[351922365,1738846234024,-248.69249772,0.00013698,2]
[351922366,1738846234035,-500.0,0.00013698,2]
[351922367,1738846234045,-566.35461217,0.00013698,2]
[351922368,1738846234055,-500.0,0.00013698,2]
[351922369,1738846234065,-500.0,0.00013698,2]
[351922370,1738846234075,-500.0,0.00013698,2]
[351922371,1738846234086,-500.0,0.00013698,2]
[351922372,1738846234096,-500.0,0.00013698,2]
[351922373,1738846234106,-500.0,0.00013698,2]
[351922374,1738846234116,-500.0,0.00013698,2]
[351922375,1738846234127,-500.0,0.00013698,2]
[351922376,1738846234137,-500.0,0.00013698,2]
[351922377,1738846234147,-1157.62,0.00013698,2]
[351922378,1738846234156,-500.0,0.00013698,2]
[351922379,1738846234166,-500.0,0.00013698,2]
[351922380,1738846234176,-500.0,0.00013698,2]
[351922381,1738846234186,-3331.12,0.00013698,2]
[351922382,1738846234196,-500.0,0.00013698,2]
[351922383,1738846234206,-500.0,0.00013698,2]
[351922384,1738846234216,-500.0,0.00013698,2]
[351922385,1738846234226,-500.0,0.00013698,2]
[351922386,1738846234236,-500.0,0.00013698,2]
[351922387,1738846234245,-500.0,0.00013698,2]
[351922388,1738846234255,-500.0,0.00013698,2]
[351922389,1738846234265,-1046.31,0.00013698,2]
[351922390,1738846234275,-1115.31,0.00013698,2]
[351922391,1738846234286,-500.0,0.00013698,2]
[351922392,1738846234296,-534.68559103,0.00013698,2]
[351922393,1738846234305,-305.34318282,0.00013698,2]
[351922394,1738846234314,-500.0,0.00013698,2]
[351922395,1738846234324,-767.75,0.00013698,2]
[351922396,1738846234334,-231.4198591,0.00013698,2]
[351922397,1738846234344,-392.76298702,0.00013698,2]
[351922398,1738846234353,-657.1,0.00013698,2]
[351922399,1738846234362,-1290.32,0.00013698,2]
[351922400,1738846234372,-500.0,0.00013698,2]
[351922401,1738846234381,-501.84386738,0.00013698,2]
[351922402,1738846234391,-1406.44,0.00013698,2]
[351922403,1738846234400,-500.0,0.00013698,2]
[351922404,1738846234410,-500.0,0.00013698,2]
[351922405,1738846234421,-3352.71,0.00013698,2]
[351922406,1738846234430,-500.0,0.00013698,2]
[351922407,1738846234439,-500.0,0.00013698,2]
[351922408,1738846234448,-658.64,0.00013698,2]
[351922409,1738846234457,-500.0,0.00013698,2]
[351922410,1738846234467,-500.0,0.00013698,2]
[351922411,1738846234476,-7608.9,0.00013698,2]
[351922412,1738846234486,-500.0,0.00013698,2]
[351922413,1738846234495,-500.0,0.00013698,2]
[351922414,1738846234504,-502.61169903,0.00013698,2]
[351922415,1738846234514,-5373.99954456,0.00013698,2]
[351922416,1738846234533,-8470.15045544,0.00013698,2]
[351922417,1738846234544,-500.0,0.00013698,2]
[351922418,1738846234554,-500.0,0.00013698,2]
[351922419,1738846234564,-500.0,0.00013698,2]
[351922420,1738846234574,-500.0,0.00013698,2]
[351922421,1738846234584,-1047.98,0.00013698,2]
[351922422,1738846234594,-500.0,0.00013698,2]
[351922423,1738846234603,-570.88527049,0.00013698,2]
[351922424,1738846234612,-439.00348576,0.00013698,2]
[351922425,1738846234622,-500.0,0.00013698,2]
[351922426,1738846234633,-500.0,0.00013698,2]
[351922427,1738846234644,-1961.93,0.00013698,2]
[351922428,1738846234653,-500.0,0.00013698,2]
[351922429,1738846234662,-501.56384328,0.00013698,2]
[351922430,1738846234675,-500.0,0.00013698,2]
[351922431,1738846234685,-616.92141906,0.00013698,2]
[351922432,1738846234694,-500.0,0.00013698,2]
[351922433,1738846234704,-900.96,0.00013698,2]
[351922434,1738846234714,-1179.15,0.00013698,2]
[351922435,1738846234724,-500.0,0.00013698,2]
[351922436,1738846234734,-1337.62,0.00013698,2]
[351922437,1738846234744,-500.0,0.00013698,2]
[351922438,1738846234753,-296.33550128,0.00013698,2]
[351922439,1738846234763,-497.46872135,0.00013698,2]
[351922440,1738846234773,-500.0,0.00013698,2]
[351922441,1738846234783,-506.03758764,0.00013698,2]
[351922442,1738846234793,-594.11,0.00013698,2]
[351922443,1738846234802,-31.23559313,0.00013698,2]
[351922444,1738846234817,-985.0,0.00013698,2]
[351922445,1738846234830,-76.31440687,0.00013698,2]
[351922446,1738846234839,-500.0,0.00013698,2]
[351922447,1738846234851,-500.0,0.00013698,2]
[351922448,1738846234860,-500.0,0.00013698,2]
[351922449,1738846234870,-616.8449243,0.00013698,2]
[351922450,1738846234880,-500.0,0.00013698,2]
[351922451,1738846234890,-500.0,0.00013698,2]
[351922452,1738846234899,-89.09891098,0.00013698,2]
[351922478,1738846238335,-410.90108902,0.00013698,2]
[351922480,1738846238344,-81.74390348,0.00013698,2]
[351922482,1738846238356,-4220.14609652,0.00013698,2]
[351922484,1738846238366,-500.0,0.00013698,2]
[351922486,1738846238375,-500.0,0.00013698,2]
[351922488,1738846238385,-500.0,0.00013698,2]
[351922490,1738846238395,-500.0,0.00013698,2]
[351922492,1738846238405,-500.0,0.00013698,2]
[351922495,1738846238415,-500.0,0.00013698,2]
[351922497,1738846238425,-500.0,0.00013698,2]
[351922499,1738846238435,-500.0,0.00013698,2]
[351922502,1738846238444,-500.0,0.00013698,2]
[351922505,1738846238453,-5457.4,0.00013698,2]
[351922508,1738846238463,-41988.94,0.00013698,2]
[351922511,1738846238472,-500.0,0.00013698,2]
[351922514,1738846238482,-500.0,0.00013698,2]
[351922517,1738846238492,-500.0,0.00013698,2]
[351922520,1738846238502,-500.0,0.00013698,2]
[351922522,1738846238511,-2286.09,0.00013698,2]
[351922524,1738846238521,-500.0,0.00013698,2]
[351922526,1738846238530,-500.0,0.00013698,2]
[351922528,1738846238540,-500.0,0.00013698,2]
[351922530,1738846238550,-502.08279943,0.00013698,2]
[351922532,1738846238563,-508.17400798,0.00013698,2]
[351922534,1738846238572,-500.0,0.00013698,2]
[351922536,1738846238582,-500.0,0.00013698,2]
[351922538,1738846238592,-500.0,0.00013698,2]
[351922540,1738846238603,-2061.62,0.00013698,2]
[351922542,1738846238612,-500.0,0.00013698,2]
[351922544,1738846238622,-500.0,0.00013698,2]
[351922547,1738846238632,-500.0,0.00013698,2]
[351922549,1738846238642,-492.9554816,0.00013698,2]
[351922550,1738846238652,-500.0,0.00013698,2]
[351922552,1738846238661,-1368.27,0.00013698,2]
[351922554,1738846238673,-500.0,0.00013698,2]
[351922557,1738846238683,-500.0,0.00013698,2]
[351922558,1738846238692,-2454.91,0.00013698,2]
[351922560,1738846238702,-500.0,0.00013698,2]
[351922563,1738846238711,-500.0,0.00013698,2]
[351922565,1738846238721,-500.0,0.00013698,2]
[351922567,1738846238730,-500.0,0.00013698,2]
[351922569,1738846238740,-500.0,0.00013698,2]
[351922571,1738846238749,-500.0,0.00013698,2]
[351922573,1738846238759,-321.88725021,0.00013698,2]
[351922575,1738846238769,-500.0,0.00013698,2]
[351922577,1738846238779,-500.0,0.00013698,2]
[351922579,1738846238790,-948.46,0.00013698,2]
[351922581,1738846238800,-500.0,0.00013698,2]
[351922583,1738846238810,-394.00457614,0.00013698,2]
[351922585,1738846238820,-500.0,0.00013698,2]
[351922587,1738846238830,-1574.82,0.00013698,2]
[351922589,1738846238839,-500.0,0.00013698,2]
[351922591,1738846238849,-500.0,0.00013698,2]
[351922593,1738846238858,-500.0,0.00013698,2]
[351922595,1738846238868,-500.0,0.00013698,2]
[351922597,1738846238878,-500.0,0.00013698,2]
[351922599,1738846238887,-17564.73,0.00013698,2]
[351922601,1738846238897,-500.0,0.00013698,2]
[351922603,1738846238907,-500.0,0.00013698,2]
[351922627,1738846239144,-1759.52,0.00013698,2]
[351922628,1738846239157,-500.0,0.00013698,2]
[351922629,1738846239169,-500.0,0.00013698,2]
[351922630,1738846239179,-500.0,0.00013698,2]
[351922631,1738846239188,-500.0,0.00013698,2]
[351922632,1738846239198,-500.0,0.00013698,2]
[351922633,1738846239208,-1357.54,0.00013698,2]
[351922634,1738846239218,-500.0,0.00013698,2]
[351922635,1738846239227,-500.0,0.00013698,2]
[351922636,1738846239236,-500.81490185,0.00013698,2]
[351922637,1738846239246,-500.0,0.00013698,2]
[351922638,1738846239254,-500.0,0.00013698,2]
[351922639,1738846239263,-500.0,0.00013698,2]
[351922640,1738846239272,-500.0,0.00013698,2]
[351922641,1738846239281,-500.57867955,0.00013698,2]
[351922642,1738846239290,-500.0,0.00013698,2]
[351922643,1738846239300,-2380.35,0.00013698,2]
[351922644,1738846239309,-500.0,0.00013698,2]
[351922645,1738846239318,-500.0,0.00013698,2]
[351922646,1738846239327,-500.0,0.00013698,2]
[351922647,1738846239337,-1564.44,0.00013698,2]
[351922648,1738846239346,-761.62,0.00013698,2]
[351922649,1738846239355,-500.0,0.00013698,2]
[351922650,1738846239364,-500.0,0.00013698,2]
[351922651,1738846239373,-500.27986296,0.00013698,2]
[351922652,1738846239382,-500.0,0.00013698,2]
[351922653,1738846239391,-541.13220611,0.00013698,2]
[351922654,1738846239399,-500.0,0.00013698,2]
[351922655,1738846239407,-598.17,0.00013698,2]
[351922656,1738846239414,-500.0,0.00013698,2]
[351922657,1738846239422,-500.0,0.00013698,2]
[351922658,1738846239429,-500.0,0.00013698,2]
[351922659,1738846239438,-360.59082124,0.00013698,2]
[351922660,1738846239444,-500.0,0.00013698,2]
[351922661,1738846239451,-703.94,0.00013698,2]
[351922662,1738846239457,-500.0,0.00013698,2]
[351922663,1738846239466,-500.89349764,0.00013698,2]
[351922664,1738846239474,-500.0,0.00013698,2]
[351922665,1738846239484,-500.0,0.00013698,2]
[351922666,1738846239491,-500.0,0.00013698,2]
[351922667,1738846239499,-500.0,0.00013698,2]
[351922669,1738846239508,-500.0,0.00013698,2]
[351922671,1738846239516,-274.40048507,0.00013698,2]
[351922672,1738846239524,-500.0,0.00013698,2]
[351922674,1738846239533,-505.91623262,0.00013698,2]
[351922676,1738846239540,-877.71,0.00013698,2]
[351922677,1738846239549,-500.0,0.00013698,2]
[351922679,1738846239559,-500.0,0.00013698,2]
[351922681,1738846239568,-500.0,0.00013698,2]
[351922683,1738846239575,-780.62,0.00013698,2]
[351922685,1738846239585,-201.92633535,0.00013698,2]
[351922686,1738846239596,-500.0,0.00013698,2]
[351922687,1738846239606,-500.22167013,0.00013698,2]
[351922688,1738846239616,-500.0,0.00013698,2]
[351922689,1738846239626,-500.0,0.00013698,2]
[351922690,1738846239638,-500.0,0.00013698,2]
[351922691,1738846239649,-500.0,0.00013698,2]
[351922692,1738846239659,-500.0,0.00013698,2]
[351922693,1738846239669,-500.0,0.00013698,2]
[351922694,1738846239679,-500.0,0.00013698,2]
[351922695,1738846239689,-3605.2,0.00013698,2]
[351922696,1738846239699,-500.0,0.00013698,2]
[351922697,1738846239708,-500.9944304,0.00013698,2]
[351922698,1738846239718,-3288.75,0.00013698,2]
[351922699,1738846239728,-500.0,0.00013698,2]
[351922701,1738846239739,-500.0,0.00013698,2]
[351922703,1738846239748,-500.0,0.00013698,2]
[351922705,1738846239758,-500.0,0.00013698,2]
[351922707,1738846239768,-500.0,0.00013698,2]
[351922709,1738846239777,-241.4,0.00013698,2]
[351922711,1738846239787,-500.0,0.00013698,2]
[351922714,1738846239797,-500.0,0.00013698,2]
[351922717,1738846239806,-500.0,0.00013698,2]
[351922720,1738846239816,-500.0,0.00013698,2]
[351922722,1738846239825,-4009.1,0.00013698,2]
[351922724,1738846239835,-500.0,0.00013698,2]
[351922727,1738846239845,-500.0,0.00013698,2]
[351922730,1738846239854,-500.07064162,0.00013698,2]
[351922734,1738846239864,-500.0,0.00013698,2]
[351922738,1738846239874,-558.10898564,0.00013698,2]
[351922741,1738846239884,-449.72302827,0.00013698,2]
[351922743,1738846239894,-500.0,0.00013698,2]
[351922745,1738846239903,-864.07,0.00013698,2]
[351922747,1738846239912,-515.22791306,0.00013698,2]
[351922749,1738846239923,-500.0,0.00013698,2]
[351922751,1738846239933,-519.76,0.00013698,2]
[351922753,1738846239942,-1897.37,0.00013698,2]
[351922755,1738846239952,-1408.26,0.00013698,2]
[351922757,1738846239962,-1811.66,0.00013698,2]
[351922759,1738846239972,-500.0,0.00013698,2]
[351922761,1738846239982,-1807.71,0.00013698,2]
[351922763,1738846239991,-500.0,0.00013698,2]
[351922765,1738846240001,-500.0,0.00013698,2]
[351922767,1738846240010,-9652.79,0.00013698,2]
[351922769,1738846240020,-500.0,0.00013698,2]
[351922771,1738846240029,-500.0,0.00013698,2]
[351922773,1738846240039,-501.38986885,0.00013698,2]
[351922775,1738846240048,-1407.51,0.00013698,2]
[351922777,1738846240058,-500.0,0.00013698,2]
[351922779,1738846240068,-500.0,0.00013698,2]
[351922781,1738846240077,-930.5,0.00013698,2]
[351922783,1738846240087,-763.73,0.00013698,2]
[351922785,1738846240096,-500.0,0.00013698,2]
[351922787,1738846240106,-833.96,0.00013698,2]
[351922789,1738846240116,-500.0,0.00013698,2]
[351922791,1738846240125,-619.47,0.00013698,2]
[351922793,1738846240135,-500.0,0.00013698,2]
[351922794,1738846240145,-500.0,0.00013698,2]
[351922796,1738846240154,-500.0,0.00013698,2]
[351922798,1738846240164,-502.44808444,0.00013698,2]
[351922800,1738846240175,-500.0,0.00013698,2]
[351922802,1738846240184,-500.0,0.00013698,2]
[351922804,1738846240194,-500.0,0.00013698,2]
[351922806,1738846240203,-506.13247617,0.00013698,2]
[351922808,1738846240213,-500.0,0.00013698,2]
[351922810,1738846240222,-500.0,0.00013698,2]
[351922812,1738846240232,-500.0,0.00013698,2]
[351922814,1738846240241,-500.0,0.00013698,2]
[351922816,1738846240250,-500.0,0.00013698,2]
[351922818,1738846240259,-500.0,0.00013698,2]
[351922820,1738846240269,-500.0,0.00013698,2]
[351922822,1738846240278,-500.0,0.00013698,2]
[351922824,1738846240288,-500.0,0.00013698,2]
[351922826,1738846240297,-500.0,0.00013698,2]
[351922828,1738846240306,-500.0,0.00013698,2]
[351922829,1738846240316,-1295.21,0.00013698,2]
[351922830,1738846240325,-692.3,0.00013698,2]
[351922831,1738846240335,-261.466984,0.00013699,2]
[351922832,1738846240344,-788.420505,0.00013699,2]
[351922833,1738846240353,-3640.9785995,0.00013699,2]
[351922834,1738846240363,-431.1289678,0.00013699,2]
[351922835,1738846240372,-153.0,0.00013699,2]
[351922836,1738846240382,-309.0698992,0.00013699,2]
[351922837,1738846240391,-165.311845,0.0001372,3]
[351922838,1738846240401,-304.9154918,0.0001379,2]
[351922839,1738846240411,-500.0,0.00013834,2]
[351922840,1738846240421,-500.0,0.00013834,2]
[351922842,1738846240430,-633.3510227,0.00013834,2]
[351922844,1738846240440,-500.0,0.00013835,2]
[351922846,1738846240449,-609.57,0.00013835,2]
[351922848,1738846240459,-500.0,0.00013835,2]
[351922850,1738846240468,-500.0,0.00013835,2]
[351922852,1738846240477,-500.0,0.00013835,2]
[351922854,1738846240486,-500.0,0.00013835,2]
[351922856,1738846240495,-186.45,0.00013835,2]
[351922858,1738846240505,-500.0,0.00013835,2]
[351922860,1738846240514,-254.14,0.00013835,2]
[351922862,1738846240524,-500.0,0.00013835,2]
[351922863,1738846240533,-1438.0,0.00013835,2]
[351922865,1738846240544,-500.0,0.00013835,2]
[351922867,1738846240559,-424.45,0.00013835,2]
[351922869,1738846240568,-500.0,0.00013835,2]
[351922870,1738846240578,-500.0,0.00013835,2]
[351922871,1738846240587,-887.37,0.00013835,2]
[351922872,1738846240598,-500.0,0.00013835,2]
[351922873,1738846240607,-500.0,0.00013835,2]
[351922874,1738846240617,-500.0,0.00013835,2]
[351922875,1738846240626,-500.0,0.00013835,2]
[351922876,1738846240639,-500.0,0.00013835,2]
[351922877,1738846240648,-660.99,0.00013835,2]
[351922878,1738846240658,-458.35517356,0.00013835,2]
[351922879,1738846240668,-795.39,0.00013835,2]
[351922880,1738846240677,-500.0,0.00013835,2]
[351922881,1738846240686,-500.0,0.00013835,2]
[351922882,1738846240695,-889.35,0.00013835,2]
[351922883,1738846240705,-500.0,0.00013835,2]
[351922884,1738846240714,-648.24,0.00013835,2]
[351922885,1738846240724,-752.64,0.00013835,2]
[351922886,1738846240733,-479.19397539,0.00013835,2]
[351922887,1738846240743,-500.0,0.00013835,2]
[351922888,1738846240753,-500.0,0.00013835,2]
[351922889,1738846240763,-500.0,0.00013835,2]
[351922890,1738846240773,-500.0,0.00013835,2]
[351922891,1738846240783,-500.0,0.00013835,2]
[351922892,1738846240792,-500.0,0.00013835,2]
[351922893,1738846240801,-500.0,0.00013835,2]
[351922894,1738846240811,-500.0,0.00013835,2]
[351922895,1738846240820,-306.36551695,0.00013835,2]
[351922896,1738846240830,-1652.33,0.00013835,2]
[351922897,1738846240839,-1064.01,0.00013835,2]
[351922898,1738846240849,-500.0,0.00013835,2]
[351922899,1738846240858,-1582.08,0.00013835,2]
[351922900,1738846240868,-500.0,0.00013835,2]
[351922901,1738846240878,-601.19,0.00013835,2]
[351922902,1738846240887,-500.0,0.00013835,2]
[351922903,1738846240897,-500.0,0.00013835,2]
[351922904,1738846240907,-774.03,0.00013835,2]
[351922905,1738846240916,-500.0,0.00013835,2]
[351922906,1738846240926,-203.19450892,0.00013835,2]
[351922907,1738846240936,-500.0,0.00013835,2]
[351922909,1738846240945,-724.34,0.00013835,2]
[351922911,1738846240955,-500.0,0.00013835,2]
[351922913,1738846240964,-500.0,0.00013835,2]
[351922915,1738846240974,-188.0,0.00013835,2]
[351922917,1738846240983,-1335.36,0.00013835,2]
[351922919,1738846240993,-500.0,0.00013835,2]
[351922921,1738846241002,-500.0,0.00013835,2]
[351922923,1738846241012,-500.0,0.00013835,2]
[351922925,1738846241022,-500.0,0.00013835,2]
[351922926,1738846241032,-1157.62,0.00013835,2]
[351922927,1738846241042,-500.0,0.00013835,2]
[351922929,1738846241053,-500.0,0.00013835,2]
[351922931,1738846241062,-196.99,0.00013835,2]
[351922933,1738846241071,-500.0,0.00013835,2]
[351922935,1738846241080,-500.0,0.00013835,2]